lending/lending_fUSD_20240509
["ID","MTS","AMOUNT","RATE_DAILY","PERIOD"]
[326682812,1715219472484,-688.36,0.00029041,5]
[326682813,1715219472493,-512.40872743,0.00029041,5]
[326682814,1715219472503,-977.23,0.00029041,5]
[326682815,1715219472513,-500.0,0.00029041,5]
[326682816,1715219472526,-914.69,0.00029041,5]
[326682817,1715219472535,-500.0,0.00029041,5]
[326682818,1715219472546,-261.88,0.00029041,5]
[326682819,1715219472556,-500.0,0.00029041,5]
[326682820,1715219472566,-246.37829849,0.00029041,5]
[326682821,1715219472575,-500.0,0.00029041,5]
[326682822,1715219472585,-614.37,0.00029041,5]
[326682823,1715219472595,-500.0,0.00029041,5]
[326682824,1715219472605,-630.34,0.00029041,5]
[326682825,1715219472615,-500.0,0.00029041,5]
[326682826,1715219472624,-837.98,0.00029041,5]
[326682827,1715219472633,-505.56,0.00029041,5]
[326682828,1715219472643,-1368.12,0.00029041,5]
[326682829,1715219472652,-500.0,0.00029041,5]
[326682830,1715219472661,-1488.76,0.00029041,5]
[326682831,1715219472670,-639.8,0.00029041,5]
[326682832,1715219472680,-1390.96,0.00029041,5]
[326682833,1715219472690,-576.66,0.00029041,5]
[326682834,1715219472699,-1413.09,0.00029041,5]
[326682835,1715219472708,-500.0,0.00029041,5]
[326682836,1715219472718,-1806.26,0.00029041,5]
[326682837,1715219472728,-2132.72,0.00029041,5]
[326682838,1715219472738,-817.69,0.00029041,5]
[326682839,1715219472747,-500.0,0.00029041,5]
[326682840,1715219472757,-748.07,0.00029041,5]
[326682841,1715219472766,-3706.74,0.00029041,5]
[326682842,1715219472775,-1835.25,0.00029041,5]
[326682843,1715219472785,-739.41,0.00029041,5]
[326682844,1715219472794,-500.0,0.00029041,5]
[326682845,1715219472803,-1905.32,0.00029041,5]
[326682846,1715219472813,-500.0,0.00029041,2]
[326682847,1715219472823,-500.0,0.00029041,5]
[326682848,1715219472833,-884.61,0.00029041,5]
[326682849,1715219472842,-500.0,0.00029041,5]
[326682850,1715219472851,-597.94,0.00029041,5]
[326682851,1715219472861,-556.45,0.00029041,5]
[326682852,1715219472870,-847.87,0.00029041,5]
[326682853,1715219472879,-3283.17,0.00029041,5]
[326682854,1715219472888,-764.62,0.00029041,5]
[326682855,1715219472897,-1261.87,0.00029041,5]
[326682856,1715219472906,-926.98,0.00029041,5]
[326682857,1715219472915,-3186.51,0.00029041,5]
[326682858,1715219472925,-500.0,0.00029041,5]
[326682859,1715219472935,-522.1,0.00029041,5]
[326682860,1715219472945,-834.51,0.00029041,5]
[326682861,1715219472955,-978.86,0.00029041,5]
[326682862,1715219472964,-500.0,0.00029041,5]
[326682863,1715219472973,-1412.32,0.00029041,5]
[326682864,1715219472983,-930.77,0.00029041,5]
[326682865,1715219472992,-790.78,0.00029041,5]
[326682866,1715219473002,-1466.13,0.00029041,5]
[326682867,1715219473012,-500.0,0.00029041,5]
[326682868,1715219473021,-664.98,0.00029041,5]
[326682869,1715219473031,-671.28,0.00029041,5]
[326682870,1715219473040,-500.0,0.00029041,5]
[326682871,1715219473050,-2901.1,0.00029041,5]
[326682872,1715219473059,-2044.97,0.00029041,5]
[326682873,1715219473068,-500.0,0.00029041,5]
[326682874,1715219473077,-5973.26,0.00029041,5]
[326682875,1715219473087,-631.18,0.00029041,5]
[326682876,1715219473097,-863.56,0.00029041,5]
[326682877,1715219473106,-1814.52,0.00029041,5]
[326682878,1715219473116,-500.0,0.00029041,5]
[326682879,1715219473125,-505.36,0.00029041,5]
[326682880,1715219473134,-522.49046774,0.00029041,5]
[326682881,1715219473144,-500.0,0.00029041,5]
[326682882,1715219473155,-748.66,0.00029041,5]
[326682883,1715219473168,-1430.38,0.00029041,5]
[326682884,1715219473178,-500.0,0.00029041,5]
[326682885,1715219473188,-1089.21,0.00029041,5]
[326682886,1715219473199,-2297.66,0.00029041,5]
[326682887,1715219473209,-500.0,0.00029041,5]
[326682888,1715219473219,-500.0,0.00029041,5]
[326682889,1715219473230,-570.71,0.00029041,5]
[326682890,1715219473239,-1048.81,0.00029041,5]
[326682891,1715219473248,-500.0,0.00029041,5]
[326682892,1715219473258,-500.0,0.00029041,5]
[326682893,1715219473268,-1012.27,0.00029041,5]
[326682894,1715219473278,-517.78,0.00029041,5]
[326682895,1715219473289,-500.0,0.00029041,5]
[326682896,1715219473299,-1033.87,0.00029041,5]
[326682897,1715219473308,-1227.81,0.00029041,5]
[326682898,1715219473318,-1014.04,0.00029041,5]
[326682899,1715219473327,-500.0,0.00029041,5]
[326682900,1715219473337,-693.58,0.00029041,5]
[326682901,1715219473347,-2277.84,0.00029041,5]
[326682902,1715219473357,-794.75,0.00029041,5]
[326682903,1715219473367,-500.0,0.00029041,5]
[326682904,1715219473377,-169.65294391,0.00029041,5]
[326682905,1715219473386,-200.29,0.00029041,5]
[326682906,1715219473396,-579.99,0.00029041,5]
[326682907,1715219473405,-998.45,0.00029041,5]
[326682908,1715219473415,-772.2,0.00029041,5]
[326682909,1715219473424,-500.0,0.00029041,5]
[326682910,1715219473435,-970.72,0.00029041,5]
[326682911,1715219473445,-500.0,0.00029041,5]
[326682912,1715219473454,-951.05,0.00029041,5]
[326682913,1715219473464,-1604.12,0.00029041,5]
[326682914,1715219473474,-1453.73,0.00029041,5]
[326682915,1715219473483,-1096.87,0.00029041,5]
[326682916,1715219473493,-2059.09,0.00029041,5]
[326682917,1715219473502,-500.0,0.00029041,5]
[326682918,1715219473513,-500.0,0.00029041,5]
[326682919,1715219473528,-1017.3,0.00029041,5]
[326682920,1715219473538,-2167.7,0.00029041,5]
[326682921,1715219473549,-934.8,0.00029041,5]
[326682922,1715219473559,-1390.34,0.00029041,5]
[326682923,1715219473572,-500.0,0.00029041,5]
[326682924,1715219473581,-500.0,0.00029041,5]
[326682925,1715219473591,-917.04,0.00029041,5]
[326682926,1715219473603,-500.0,0.00029041,5]
[326682927,1715219473612,-961.5,0.00029041,5]
[326682928,1715219473623,-500.0,0.00029041,5]
[326682929,1715219473632,-500.0,0.00029041,5]
[326682930,1715219473791,-1081.95,0.00029041,5]
[326682931,1715219473801,-663.84,0.00029041,5]
[326682932,1715219473810,-858.13,0.00029041,5]
[326682933,1715219473820,-1568.0,0.00029041,5]
[326682934,1715219473829,-4301.21,0.00029041,5]
[326682935,1715219473839,-9872.43,0.00029041,5]
[326682936,1715219473848,-500.0,0.00029041,5]
[326682937,1715219473857,-1610.77,0.00029041,5]
[326682938,1715219473866,-1585.51,0.00029041,5]
[326682939,1715219473875,-500.0,0.00029041,5]
[326682940,1715219473885,-652.36,0.00029041,5]
[326682941,1715219473894,-150.0,0.00029056,2]
[326682942,1715219473903,-150.0,0.00029064,2]
[326682943,1715219473912,-150.0,0.00029069,2]
[326682944,1715219473921,-275.5,0.000291,2]
[326682945,1715219473935,-150.0,0.00029106,2]
[326682946,1715219473946,-150.0,0.00029117,2]
[326682947,1715219473956,-150.0,0.00029129,2]
[326682948,1715219473966,-150.0,0.00029132,2]
[326682949,1715219473976,-150.0,0.00029135,2]
[326682950,1715219473986,-157.050909,0.00029148,20]
[326682951,1715219473997,-150.0,0.00029155,2]
[326682952,1715219474006,-150.0,0.00029165,2]
[326682953,1715219474016,-150.0,0.00029168,2]
[326682954,1715219474025,-150.0,0.00029183,2]
[326682955,1715219474035,-150.0,0.00029183,2]
[326682956,1715219474044,-150.0,0.00029192,2]
[326682957,1715219474054,-151.40745661,0.00029195,2]
[326682958,1715219474063,-150.0,0.0002923,2]
[326682959,1715219474073,-150.0,0.00029234,2]
[326682960,1715219474083,-150.0,0.00029237,2]
[326682961,1715219474092,-150.0,0.00029242,2]
[326682962,1715219474101,-150.0,0.00029244,2]
[326682963,1715219474110,-200.0,0.00029279,2]
[326682964,1715219474120,-1000.0,0.00029279,10]
[326682965,1715219474129,-500.0,0.00029279,2]
[326682966,1715219474139,-200.0,0.00029279,2]
[326682967,1715219474148,-150.0,0.00029289,2]
[326682968,1715219474158,-150.0,0.00029312,2]
[326682969,1715219474168,-150.0,0.00029314,2]
[326682970,1715219474177,-150.0,0.00029315,2]
[326682971,1715219474186,-150.0,0.00029319,2]
[326682972,1715219474196,-150.0,0.00029323,2]
[326682973,1715219474205,-150.0,0.00029327,2]
[326682974,1715219474215,-150.0,0.00029338,2]
[326682975,1715219474226,-150.0,0.00029342,2]
[326682976,1715219474235,-150.0,0.00029343,2]
[326682977,1715219474245,-150.0,0.00029349,2]
[326682978,1715219474255,-36035.29036,0.00029378,120]
[326682979,1715219474264,-195.0,0.00029378,120]
[326682980,1715219474273,-3224.0,0.00029378,4]
[326682981,1715219474284,-3022.0,0.00029378,4]
[326682982,1715219474293,-218.70426679,0.00029378,60]
[326682983,1715219474303,-151.0,0.00029378,7]
[326682984,1715219474313,-151.0,0.00029378,7]
[326682985,1715219474322,-150.0,0.00029394,2]
[326682986,1715219474331,-1008.84,0.000294,2]
[326682987,1715219474341,-304.56,0.000294,2]
[326682988,1715219474350,-150.0,0.00029426,2]
[326682989,1715219474359,-157.050909,0.00029448,20]
[326682990,1715219474369,-150.0,0.00029457,2]
[326682991,1715219474378,-150.0,0.00029464,2]
[326682992,1715219474388,-150.0,0.00029468,2]
[326682993,1715219474398,-150.0,0.00029484,2]
[326682994,1715219474409,-150.0,0.00029488,2]
[326682995,1715219474422,-150.0,0.00029493,2]
[326682996,1715219474431,-369.04,0.000295,2]
[326682997,1715219474440,-150.0,0.00029511,2]
[326682998,1715219474449,-911.73,0.00029519,2]
[326682999,1715219474459,-150.0,0.00029522,2]
[326683000,1715219474468,-150.0,0.00029529,2]
[326683001,1715219474479,-150.0,0.00029553,2]
[326683002,1715219474488,-150.0,0.00029556,2]
[326683003,1715219474497,-150.0,0.0002956,2]
[326683004,1715219474506,-1789.73787012,0.0002958,2]
[326683005,1715219474520,-849.27,0.00029587,5]
[326683006,1715219474530,-548.06,0.00029587,5]
[326683007,1715219474539,-935.56,0.00029587,5]
[326683008,1715219474549,-958.88,0.00029587,5]
[326683009,1715219474563,-836.52,0.00029587,5]
[326683010,1715219474573,-2886.53,0.00029587,5]
[326683011,1715219474582,-9620.37,0.00029587,5]
[326683012,1715219474591,-978.11,0.00029587,5]
[326683013,1715219474603,-500.0,0.00029588,5]
[326683014,1715219474612,-500.0,0.00029588,5]
[326683015,1715219474622,-500.0,0.00029588,5]
[326683016,1715219474632,-500.0,0.00029588,5]
[326683017,1715219474641,-500.0,0.00029588,5]
[326683018,1715219474651,-500.0,0.00029588,5]
[326683019,1715219474660,-1614.76,0.00029588,5]
[326683020,1715219474670,-491.82968812,0.00029588,5]
[326683021,1715219474679,-500.0,0.00029588,5]
[326683022,1715219474689,-536.71,0.00029588,5]
[326683023,1715219474698,-500.0,0.00029588,5]
[326683024,1715219474708,-500.0,0.00029588,5]
[326683025,1715219474717,-500.0,0.00029588,5]
[326683026,1715219474727,-1049.1,0.00029588,5]
[326683027,1715219474736,-194.42514,0.00029588,7]
[326683028,1715219474745,-500.0,0.00029588,5]
[326683029,1715219474755,-500.0,0.00029588,5]
[326683030,1715219474764,-526.26,0.00029588,5]
[326683031,1715219474774,-500.0,0.00029588,5]
[326683032,1715219474785,-500.0,0.00029588,5]
[326683033,1715219474795,-500.0,0.00029588,5]
[326683034,1715219474804,-500.0,0.00029588,5]
[326683035,1715219474814,-500.0,0.00029588,5]
[326683036,1715219474824,-500.0,0.00029588,5]
[326683037,1715219474833,-563.1,0.00029588,5]
[326683038,1715219474843,-500.0,0.00029588,5]
[326683039,1715219474853,-500.0,0.00029588,5]
[326683040,1715219474862,-6395.62,0.00029588,2]
[326683041,1715219474871,-500.0,0.00029588,5]
[326683042,1715219474881,-992.29,0.00029588,5]
[326683043,1715219474890,-500.0,0.00029588,5]
[326683044,1715219474900,-520.44,0.00029588,5]
[326683045,1715219474909,-1514.39,0.00029588,5]
[326683046,1715219474919,-500.0,0.00029588,5]
[326683047,1715219474928,-500.0,0.00029588,5]
[326683048,1715219474937,-622.21,0.00029589,5]
[326683049,1715219474947,-177.45,0.00029589,5]
[326683050,1715219474956,-487.2,0.00029589,5]
[326683051,1715219474965,-500.0,0.00029589,5]
[326683052,1715219474975,-500.0,0.00029589,5]
[326683053,1715219474984,-500.0,0.00029589,5]
[326683054,1715219474993,-595.38,0.00029589,5]
[326683055,1715219475003,-500.0,0.00029589,5]
[326683056,1715219475012,-500.0,0.00029589,5]
[326683057,1715219475022,-500.0,0.00029589,5]
[326683058,1715219475031,-500.0,0.00029589,5]
[326683059,1715219475041,-500.0,0.00029589,5]
[326683060,1715219475052,-664.55,0.00029589,5]
[326683061,1715219475062,-1067.91,0.00029589,5]
[326683062,1715219475072,-500.0,0.00029589,5]
[326683063,1715219475082,-664.08,0.00029589,5]
[326683064,1715219475091,-265.95,0.00029589,5]
[326683065,1715219475101,-500.0,0.00029589,5]
[326683066,1715219475110,-543.73,0.00029589,5]
[326683067,1715219475119,-500.0,0.00029589,5]
[326683068,1715219475130,-500.0,0.00029589,5]
[326683069,1715219475141,-500.0,0.00029589,5]
[326683070,1715219475151,-1190.8,0.00029589,5]
[326683071,1715219475160,-859.07,0.00029589,5]
[326683072,1715219475170,-986.6,0.00029589,5]
[326683073,1715219475179,-500.0,0.00029589,5]
[326683074,1715219475189,-500.0,0.00029589,5]
[326683075,1715219475198,-1149.3,0.00029589,5]
[326683076,1715219475207,-516.86,0.00029589,5]
[326683077,1715219475216,-500.0,0.00029589,5]
[326683078,1715219475226,-916.99,0.00029589,5]
[326683079,1715219475236,-538.32,0.00029589,5]
[326683080,1715219475245,-656.13,0.00029589,5]
[326683081,1715219475255,-500.0,0.00029589,5]
[326683082,1715219475265,-500.0,0.00029589,5]
[326683083,1715219475274,-1284.05,0.00029589,5]
[326683084,1715219475284,-1127.51,0.00029589,5]
[326683085,1715219475295,-539.44,0.00029589,5]
[326683086,1715219475315,-500.0,0.00029589,5]
[326683087,1715219475336,-500.0,0.00029589,5]
[326683088,1715219475349,-257.61,0.00029589,5]
[326683089,1715219475359,-500.0,0.00029589,5]
[326683090,1715219475368,-151.0,0.00029589,7]
[326683091,1715219475378,-1087.69,0.00029589,5]
[326683092,1715219475387,-500.0,0.00029589,5]
[326683093,1715219475397,-1107.66,0.00029589,5]
[326683094,1715219475406,-500.0,0.00029589,5]
[326683095,1715219475416,-151.0,0.00029589,7]
[326683096,1715219475425,-967.05,0.00029589,5]
[326683097,1715219475435,-500.0,0.00029589,5]
[326683098,1715219475444,-500.0,0.00029589,5]
[326683099,1715219475453,-500.0,0.00029589,5]
[326683100,1715219475463,-151.0,0.00029589,7]
[326683101,1715219475472,-389.34,0.00029589,5]
[326683102,1715219475483,-3088.76,0.00029589,5]
[326683103,1715219475492,-151.0,0.00029589,7]
[326683104,1715219475502,-500.0,0.00029589,5]
[326683105,1715219475511,-500.0,0.00029589,5]
[326683106,1715219475525,-824.35,0.00029589,5]
[326683107,1715219475534,-500.0,0.00029589,5]
[326683108,1715219475543,-830.79,0.00029589,5]
[326683109,1715219475552,-500.0,0.00029589,5]
[326683110,1715219475563,-500.0,0.00029589,5]
[326683111,1715219475573,-500.0,0.00029589,5]
[326683112,1715219475582,-1190.63,0.00029589,5]
[326683113,1715219475592,-540.0,0.00029589,5]
[326683114,1715219475603,-500.0,0.00029589,5]
[326683115,1715219475614,-500.0,0.00029589,5]
[326683116,1715219475624,-352.56,0.00029589,5]
[326683117,1715219475633,-500.0,0.00029589,5]
[326683118,1715219475643,-500.0,0.00029589,5]
[326683119,1715219475653,-7854.15,0.00029589,5]
[326683120,1715219475662,-648.9,0.00029589,5]
[326683121,1715219475671,-500.0,0.00029589,5]
[326683122,1715219475682,-583.26,0.00029589,5]
[326683123,1715219475691,-500.0,0.00029589,5]
[326683124,1715219475700,-500.0,0.00029589,5]
[326683125,1715219475709,-500.0,0.00029589,5]
[326683126,1715219475718,-602.89,0.00029589,5]
[326683127,1715219475729,-500.0,0.00029589,5]
[326683128,1715219475738,-1252.16,0.00029589,5]
[326683129,1715219475748,-532.27630038,0.00029589,5]
[326683130,1715219475757,-833.8,0.00029589,5]
[326683131,1715219475766,-500.0,0.00029589,5]
[326683132,1715219475775,-753.29,0.00029589,5]
[326683133,1715219475784,-1260.22,0.00029589,5]
[326683134,1715219475795,-251.43,0.00029589,5]
[326683135,1715219475805,-500.0,0.00029589,5]
[326683136,1715219475814,-223.94,0.00029589,5]
[326683137,1715219475824,-240.05147688,0.00029589,5]
[326683138,1715219475833,-879.49,0.00029589,5]
[326683139,1715219475842,-920.64,0.00029589,5]
[326683140,1715219475852,-948.97,0.00029589,5]
[326683141,1715219475862,-500.0,0.00029589,5]
[326683142,1715219475871,-500.0,0.00029589,5]
[326683143,1715219475881,-713.76,0.00029589,5]
[326683144,1715219475891,-500.0,0.00029589,5]
[326683145,1715219475901,-500.0,0.00029589,5]
[326683146,1715219475910,-717.41,0.00029589,5]
[326683147,1715219475920,-742.57,0.00029589,5]
[326683148,1715219475929,-899.08,0.00029589,5]
[326683149,1715219475938,-500.0,0.00029589,5]
[326683150,1715219475948,-500.0,0.00029589,5]
[326683151,1715219475957,-2127.85,0.00029589,5]
[326683152,1715219475967,-679.21,0.00029589,5]
[326683153,1715219475978,-1344.21,0.00029589,5]
[326683154,1715219475988,-1309.5,0.00029589,5]
[326683155,1715219475997,-1000.11,0.00029589,5]
[326683156,1715219476008,-500.0,0.00029589,5]
[326683157,1715219476017,-946.95,0.00029589,5]
[326683158,1715219476027,-10717.14,0.00029589,5]
[326683159,1715219476036,-500.0,0.00029589,5]
[326683160,1715219476045,-500.0,0.00029589,5]
[326683161,1715219476055,-500.0,0.00029589,5]
[326683162,1715219476064,-1072.2,0.00029589,5]
[326683163,1715219476074,-500.0,0.00029589,5]
[326683164,1715219476083,-623.06,0.00029589,5]
[326683165,1715219476093,-500.0,0.00029589,5]
[326683166,1715219476103,-592.29,0.00029589,5]
[326683167,1715219476113,-500.0,0.00029589,5]
[326683168,1715219476133,-730.96,0.00029589,5]
[326683169,1715219476144,-800.11,0.00029589,5]
[326683170,1715219476154,-500.0,0.00029589,5]
[326683171,1715219476164,-688.36,0.00029589,5]
[326683172,1715219476174,-977.23,0.00029589,5]
[326683173,1715219476184,-500.0,0.00029589,5]
[326683174,1715219476194,-914.69,0.00029589,5]
[326683175,1715219476203,-500.0,0.00029589,5]
[326683176,1715219476213,-500.0,0.00029589,5]
[326683177,1715219476223,-614.37,0.00029589,5]
[326683178,1715219476234,-500.0,0.00029589,5]
[326683179,1715219476243,-500.0,0.00029589,5]
[326683180,1715219476253,-630.34,0.00029589,5]
[326683181,1715219476263,-837.98,0.00029589,5]
[326683182,1715219476273,-587.12414614,0.00029589,5]
[326683183,1715219476283,-505.56,0.00029589,5]
[326683184,1715219476293,-500.0,0.00029589,5]
[326683185,1715219476302,-1368.12,0.00029589,5]
[326683186,1715219476312,-1488.76,0.00029589,5]
[326683187,1715219476323,-639.8,0.00029589,5]
[326683188,1715219476333,-1390.96,0.00029589,5]
[326683189,1715219476343,-576.66,0.00029589,5]
[326683190,1715219476352,-1413.09,0.00029589,5]
[326683191,1715219476361,-500.0,0.00029589,5]
[326683192,1715219476371,-1806.26,0.00029589,5]
[326683193,1715219476381,-2132.72,0.00029589,5]
[326683194,1715219476391,-817.69,0.00029589,5]
[326683195,1715219476401,-500.0,0.00029589,5]
[326683196,1715219476411,-748.07,0.00029589,5]
[326683197,1715219476422,-3706.74,0.00029589,5]
[326683198,1715219476432,-1835.25,0.00029589,5]
[326683199,1715219476442,-739.41,0.00029589,5]
[326683200,1715219476452,-500.0,0.00029589,5]
[326683201,1715219476463,-1905.32,0.00029589,5]
[326683202,1715219476472,-500.0,0.00029589,2]
[326683203,1715219476484,-500.0,0.00029589,5]
[326683204,1715219476494,-884.61,0.00029589,5]
[326683205,1715219476505,-500.0,0.00029589,5]
[326683206,1715219476518,-597.94,0.00029589,5]
[326683207,1715219476528,-556.45,0.00029589,5]
[326683208,1715219476539,-847.87,0.00029589,5]
[326683209,1715219476548,-3283.17,0.00029589,5]
[326683210,1715219476562,-764.62,0.00029589,5]
[326683211,1715219476572,-1261.87,0.00029589,5]
[326683212,1715219476582,-926.98,0.00029589,5]
[326683213,1715219476591,-3186.51,0.00029589,5]
[326683214,1715219476603,-500.0,0.00029589,5]
[326683215,1715219476615,-522.1,0.00029589,5]
[326683216,1715219476625,-834.51,0.00029589,5]
[326683217,1715219476635,-978.86,0.00029589,5]
[326683218,1715219476645,-434.74,0.00029589,5]
[326683219,1715219476655,-1412.32,0.00029589,5]
[326683220,1715219476665,-930.77,0.00029589,5]
[326683221,1715219476675,-790.78,0.00029589,5]
[326683222,1715219476685,-1466.13,0.00029589,5]
[326683223,1715219476695,-500.0,0.00029589,5]
[326683224,1715219476704,-671.28,0.00029589,5]
[326683225,1715219476714,-664.98,0.00029589,5]
[326683226,1715219476724,-500.0,0.00029589,5]
[326683227,1715219476735,-2901.1,0.00029589,5]
[326683228,1715219476744,-2044.97,0.00029589,5]
[326683229,1715219476754,-500.0,0.00029589,5]
[326683230,1715219476764,-5973.26,0.00029589,5]
[326683231,1715219476773,-863.56,0.00029589,5]
[326683232,1715219476782,-1814.52,0.00029589,5]
[326683233,1715219476792,-500.0,0.00029589,5]
[326683234,1715219476802,-505.36,0.00029589,5]
[326683235,1715219476812,-748.66,0.00029589,5]
[326683236,1715219476822,-500.0,0.00029589,5]
[326683237,1715219476832,-1430.38,0.00029589,5]
[326683238,1715219476841,-1089.21,0.00029589,5]
[326683239,1715219476852,-529.76,0.00029589,5]
[326683240,1715219476862,-2297.66,0.00029589,5]
[326683241,1715219476872,-500.0,0.00029589,5]
[326683242,1715219476882,-1048.81,0.00029589,5]
[326683243,1715219476891,-570.71,0.00029589,5]
[326683244,1715219476901,-500.0,0.00029589,5]
[326683245,1715219476910,-164.87,0.00029589,5]
[326683246,1715219476920,-549.37,0.00029589,5]
[326683247,1715219476929,-1012.27,0.00029589,5]
[326683248,1715219476938,-500.0,0.00029589,5]
[326683249,1715219476948,-1227.81,0.00029589,5]
[326683250,1715219476957,-1033.87,0.00029589,5]
[326683251,1715219476967,-1014.04,0.00029589,5]
[326683252,1715219476977,-500.0,0.00029589,5]
[326683253,1715219476986,-693.58,0.00029589,5]
[326683254,1715219476996,-794.75,0.00029589,5]
[326683255,1715219477006,-2277.84,0.00029589,5]
[326683256,1715219477015,-500.0,0.00029589,5]
[326683257,1715219477025,-579.99,0.00029589,5]
[326683258,1715219477035,-998.45,0.00029589,5]
[326683259,1715219477044,-772.2,0.00029589,5]
[326683260,1715219477055,-500.0,0.00029589,5]
[326683261,1715219477065,-970.72,0.00029589,5]
[326683262,1715219477290,-500.0,0.00029589,5]
[326683263,1715219477301,-1604.12,0.00029589,5]
[326683264,1715219477310,-951.05,0.00029589,5]
[326683265,1715219477320,-1453.73,0.00029589,5]
[326683266,1715219477329,-1096.87,0.00029589,5]
[326683267,1715219477341,-2059.09,0.00029589,5]
[326683268,1715219477351,-500.0,0.00029589,5]
[326683269,1715219477361,-500.0,0.00029589,5]
[326683270,1715219477370,-1017.3,0.00029589,5]
[326683271,1715219477380,-1390.34,0.00029589,5]
[326683272,1715219477389,-934.8,0.00029589,5]
[326683273,1715219477398,-500.0,0.00029589,5]
[326683274,1715219477408,-2167.7,0.00029589,5]
[326683275,1715219477419,-917.04,0.00029589,5]
[326683276,1715219477429,-500.0,0.00029589,5]
[326683277,1715219477438,-161.28,0.00029589,5]
[326683278,1715219477448,-961.5,0.00029589,5]
[326683279,1715219477457,-500.0,0.00029589,5]
[326683280,1715219477466,-500.0,0.00029589,5]
[326683281,1715219477476,-1081.95,0.00029589,5]
[326683282,1715219477485,-663.84,0.00029589,5]
[326683283,1715219477495,-858.13,0.00029589,5]
[326683284,1715219477504,-1568.0,0.00029589,5]
[326683285,1715219477516,-4301.21,0.00029589,5]
[326683286,1715219477526,-9872.43,0.00029589,5]
[326683287,1715219477536,-500.0,0.00029589,5]
[326683288,1715219477546,-1610.77,0.00029589,5]
[326683289,1715219477555,-1585.51,0.00029589,5]
[326683290,1715219477565,-652.36,0.00029589,5]
[326683291,1715219477574,-150.0,0.0002959,2]
[326683292,1715219477583,-300.0,0.00029592,2]
[326683293,1715219477592,-413.56,0.000296,2]
[326683294,1715219477604,-150.0,0.00029611,2]
[326683295,1715219477614,-151.40745661,0.00029612,2]
[326683296,1715219477623,-150.0,0.00029613,2]
[326683297,1715219477633,-150.0,0.00029628,2]
[326683298,1715219477642,-157.92529717,0.00029639,2]
[326683299,1715219477651,-150.0,0.0002964,2]
[326683300,1715219477660,-150.0,0.0002964,2]
[326683301,1715219477670,-150.0,0.00029647,2]
[326683302,1715219477679,-152.0,0.00029658,4]
[326683303,1715219477688,-150.0,0.00029662,2]
[326683304,1715219477698,-165.12032487,0.0002969,3]
[326683305,1715219477708,-150.0,0.00029693,2]
[326683306,1715219477718,-150.0,0.000297,2]
[326683307,1715219477728,-150.0,0.00029702,2]
[326683308,1715219477737,-414.63,0.00029726,2]
[326683309,1715219477747,-910.13,0.00029726,2]
[326683310,1715219477756,-150.0,0.00029737,2]
[326683311,1715219477767,-150.0,0.0002974,2]